Cogmind - Beta 13 @@@ ROGUE MODE // 2024.04.12 @ 09:36:14 Player: MO-55 Result: Destroyed by Autobeam Turret with Autobeam Performance ------------- Evolutions (0) 0 Regions Visited (2) 400 Robots Destroyed (22) 110 Value Destroyed (514) 514 Prototype IDs (13) 260 Alien Tech Used (0) 0 Bonus (0) 0 TOTAL SCORE: 1284 Bonus ------- None Cogmind --------- Core Integrity 0/250 Matter 156/300 Energy 173/200 System Corruption 1% Temperature Cool (32) Movement Treading (160) Location -10/Subcaves Parts ------- > --- POWER (1) -------- Subdweller Power Source > --- PROPULSION (2) --- Light Treads Spiked Treads > --- UTILITY (2) ------ Large Storage Unit Medium Armor Plating > --- WEAPON (2) ------- Subdweller Laser Battle Rifle > --- INVENTORY (15) --- Light Ion Engine Aluminum Leg High-capacity Matter Pod (200) Structural Scanner Gun Armor Slug Cannon Rocket Launcher Rocket Launcher Rocket Launcher Rocket Launcher Peak State ------------ > --- POWER ------------ Subdweller Power Source > --- PROPULSION ------- Light Treads Spiked Treads > --- UTILITY ---------- Large Storage Unit Medium Armor Plating > --- WEAPON ----------- Battle Cannon Slug Cannon > --- INVENTORY -------- Light Ion Engine Light Treads Spiked Treads Aluminum Leg High-capacity Matter Pod Medium Armor Plating Medium Armor Plating Gun Armor Rocket Launcher Rocket Launcher Rocket Launcher Rocket Launcher Shrapnel Trap [Rating: 16] Favorites ----------- Power Subdweller Power Source Engine Subdweller Power Source Propulsion Light Treads Treads Light Treads Leg Aluminum Leg Wheel Wheel Utility Large Storage Unit Storage Large Storage Unit Protection Medium Armor Plating Weapon Subdweller Laser Energy Gun Subdweller Laser Energy Cannon Beam Cannon Ballistic Gun Subdweller Machine Gun Ballistic Cannon Slug Cannon Launcher Rocket Launcher Special Weapon Mining Laser Build | -11 -10 -10 ------- Run | Yrd Mat Sub Slots Evolved . | . . . Power . | . . . Propulsion . | . . . Utility . | . . . Weapon . | . . . Parts Attached 47 | 6 13 28 Power 8 | 1 . 7 Engine 8 | 1 . 7 Core . | . . . Reactor . | . . . Propulsion 12 | 2 3 7 Treads 6 | . . 6 Leg 4 | 2 1 1 Wheel 2 | . 2 . Hover . | . . . Flight . | . . . Utility 6 | 1 2 3 Device . | . . . Storage 2 | 1 1 . Processor . | . . . Hackware . | . . . Protection 4 | . 1 3 Artifact . | . . . Weapon 21 | 2 8 11 Energy Gun 7 | 1 3 3 Energy Cannon 2 | . 1 1 Ballistic Gun 6 | 1 2 3 Ballistic Cannon 2 | . . 2 Launcher 2 | . . 2 Special Weapon 2 | . 2 . Impact Weapon . | . . . Slashing Weapon . | . . . Piercing Weapon . | . . . Special Melee Weapon . | . . . Unidentified Prototypes . | . . . Parts Lost 9 | . 1 8 Power . | . . . Propulsion 4 | . 1 3 Utility 3 | . . 3 Weapon 2 | . . 2 Highest Loss Streak 4 | . 1 4 To Critical Strikes 1 | . . 1 Average Slot Usage (%) 96 | . 86 99 Engine 14 | . 14 14 Treads 19 | . . 24 Leg 5 | . 12 3 Wheel 3 | . 14 . Storage 14 | . 14 14 Protection 11 | . 2 14 Energy Gun 8 | . 14 7 Energy Cannon 5 | . 2 6 Ballistic Gun 9 | . 9 9 Ballistic Cannon 2 | . . 3 Naked Turns . | . . . Heaviest Build 44 | 12 37 44 Greatest Support 40 | 20 20 40 Greatest Overweight (x) 3 | 1 3 3 Average Overweight (x) . | . 1 . Largest Inventory Capacity 15 | 8 15 15 Average Capacity 14 | 7 14 15 Most Carried 15 | 4 15 15 Average Carried 12 | 3 10 13 Final Capacity 15 | 8 15 15 Final Carried 15 | 4 15 10 Class Distribution -------------------- 100% | Mutant Dominant Class ---------------- Mutant | -10/Materials Mutant | -10/Subcaves Resources | -11 -10 -10 ----------- Run | Yrd Mat Sub Matter Collected 1096 | 182 255 659 Remotely . | . . . Salvage Created 555 | . 276 279 Parts 44 | . 21 23 Haulers Intercepted . | . . . Recyclers Shooed . | . . . Parts Field Recycled . | . . . Retrieved Matter . | . . . Parts Self-Destructed 21 | . . 21 Prevented . | . . . Kills | -11 -10 -10 ------- Run | Yrd Mat Sub Combat Hostiles Destroyed 20 | . 8 12 Guns 11 | . 8 3 Cannons 6 | . . 6 AOE 3 | . . 3 Classes Destroyed 5 | . 4 1 Tunneler 1 | . 1 . Recycler 1 | . 1 . Swarmer 10 | . 6 4 Grunt 2 | . 2 . Subdweller 8 | . . 8 Best Kill Streak 4 | . 3 4 Combat Bots Only 4 | . 3 4 Max Kills in Single Turn 2 | . 1 2 Gunslinging . | . . . Exploded 2 | . . 2 Melee . | . . . Uniques/NPCs Destroyed . | . . . Combat | -11 -10 -10 -------- Run | Yrd Mat Sub Hostile Shots Fired 184 | . 55 129 Missed 50 | . 11 39 Damage Taken 1668 | . 400 1268 Core 255 | . 96 159 Absorbed by Shields . | . . . Core Remaining (%) 100 | 100 . . Volleys Fired 148 | 3 55 90 Largest 2 | 2 2 2 Hottest 119 | 60 100 119 Shots Fired 205 | 6 77 122 Gun 132 | 6 68 58 Cannon 53 | . . 53 Launcher 11 | . . 11 Special 9 | . 9 . Kinetic 97 | 3 46 48 Thermal 97 | 3 31 63 Explosive 11 | . . 11 Electromagnetic . | . . . Robot Hit Streak 35 | 1 12 35 Robot Miss Streak 3 | 2 3 1 Penetration Max . | . . . Secondary Targets . | . . . Shots Hit Robots 109 | 3 46 60 Core Hits 45 | 1 20 24 Critical Kills . | . . . Critical Parts Destroyed 2 | . . 2 Critical Strikes 5 | . 2 3 Burn 2 | . 2 . Destroy 3 | . . 3 Melee Attacks . | . . . Impact . | . . . Slashing . | . . . Piercing . | . . . Sneak Attacks . | . . . Combat Hostiles . | . . . Follow-up Attacks . | . . . Damage Inflicted 2119 | 27 436 1656 Guns 818 | 27 436 355 Cannons 949 | . . 949 Explosions 352 | . . 352 Melee . | . . . Ramming . | . . . Kinetic 1019 | 15 246 758 Thermal 748 | 12 190 546 Explosive 352 | . . 352 Electromagnetic . | . . . Impact . | . . . Slashing . | . . . Piercing . | . . . Highest Corruption 1 | . 1 1 Average Corruption 1 | . 1 1 Corruption Purged . | . . . Corruption Blocked . | . . . Effects 37 | . 4 33 Message Errors 9 | . 1 8 Matter Fused 10 | . 2 8 Heat Flow Errors 5 | . . 5 Energy Discharges 3 | . . 3 Data Loss (minor) 6 | . . 6 Data Loss (major) 1 | . . 1 Misfires 2 | . . 2 Alerts 1 | . 1 . Overload Shots . | . . . Overflow Damage 5 | . . 5 Projectiles 5 | . . 5 Explosions . | . . . Melee . | . . . Knockbacks 4 | . . 4 Impact . | . . . Kinetic 4 | . . 4 Secondary . | . . . Self-Inflicted Damage 8 | . . 8 Shots 1 | . . 1 Rammed . | . . . Targets Rammed . | . . . Kicked . | . . . Crushed . | . . . Highest Temperature 567 | 20 145 567 Average Temperature 79 | 13 36 145 Received Heat Transfer 1085 | . 54 1031 Effects 1 | . . 1 Damage (minor) 1 | . . 1 Siege Activations . | . . . Robots Corrupted . | . . . Combat Hostiles . | . . . Parts Fried . | . . . Impact Corruptions . | . . . Robots Melted . | . . . Combat Hostiles . | . . . Parts Melted 3 | . 1 2 Heat Transferred 1678 | 25 691 962 Parts Sabotaged . | . . . Parts Stolen . | . . . Parts Stripped . | . . . Power Chain Reactions . | . . . Alert | -11 -10 -10 ------- Run | Yrd Mat Sub Peak Influence 145 | . 145 . Initial . | . . . Average 58 | . 61 . Maximum Alert Level . | . . . Low Security (%) 100 | 100 100 . Level 1 . | . . . Level 2 . | . . . Level 3 . | . . . Level 4 . | . . . Level 5 . | . . . High Security . | . . . Max Security . | . . . Squads Dispatched 1 | . 1 . Investigation 1 | . 1 . Extermination . | . . . Reinforcement . | . . . Assault . | . . . Garrison . | . . . Intercept . | . . . Searches Triggered . | . . . Construction Impeded . | . . . Haulers Reinforced . | . . . Active Scanning Responses . | . . . Cargo Convoy Interrupts . | . . . Stealth | -11 -10 -10 --------- Run | Yrd Mat Sub Distress Signals 1 | . 1 . Communications Jammed . | . . . Distress Signals . | . . . Times Spotted 71 | . 17 54 Peak Tracking Total 4 | . 4 3 Tactical Retreats 10 | . 2 8 Traps | -11 -10 -10 ------- Run | Yrd Mat Sub Traps Triggered 3 | . 1 2 Indirectly . | . . . Trap Hack Attempts . | . . . Triggered . | . . . Disarmed . | . . . Reprogrammed 6 | . 6 . Reused 1 | . 1 . Traps Extracted . | . . . Installed 1 | . . 1 Triggered 1 | . 1 . Most Traps Carried 1 | . . 1 Machines | -11 -10 -10 ---------- Run | Yrd Mat Sub Machines Disabled 4 | . . 4 Max in Single Turn 3 | . . 3 Machines Repaired . | . . . Machines Dismantled . | . . . Machines Sabotaged . | . . . Overloaded Fab Kills . | . . . Hacking | -11 -10 -10 --------- Run | Yrd Mat Sub Machines Accessed 10 | . 8 2 Terminals 8 | . 8 . Fabricators . | . . . Repair Stations . | . . . Recycling Units . | . . . Scanalyzers . | . . . Garrison Access . | . . . Total Hacks 26 | . 24 2 Successful 16 | . 14 2 Failed 10 | . 10 . Catastrophic 2 | . 2 . Database Lockouts . | . . . Manual 14 | . 13 1 Terminals 24 | . 24 . Fabricators . | . . . Repair Stations . | . . . Recycling Units . | . . . Scanalyzers . | . . . Garrison Access . | . . . Terminal Hacks 15 | . 13 2 Record 1 | . . 1 Part Schematic 2 | . 2 . Prototype ID Bank 2 | . 2 . Terminal Index 1 | . 1 . Locate Traps 3 | . 3 . Reprogram Traps 1 | . 1 . Hauler Manifests 2 | . 2 . Zone Layout 2 | . 2 . Derelict Proto ID Bank 1 | . . 1 Fabricator Hacks . | . . . Repair Station Hacks . | . . . Recycling Unit Hacks . | . . . Scanalyzer . | . . . Garrison Access Hacks . | . . . Unauthorized Hacks 1 | . 1 . Terminals 1 | . 1 . Botnet 1 | . 1 . Fabricators . | . . . Repair Stations . | . . . Recycling Units . | . . . Scanalyzers . | . . . Garrison Access . | . . . Data Cores Recovered . | . . . Used . | . . . Hacking Detections 7 | . 7 . Full Trace Events . | . . . Feedback Events . | . . . Feedback Blocked . | . . . Robot Schematics Acquired . | . . . Robots Built . | . . . Authchips . | . . . Time . | . . . Total Robot Build Rating . | . . . Part Schematics Acquired 2 | . 2 . Parts Built . | . . . Authchips . | . . . Time . | . . . Total Part Build Rating . | . . . Parts Repaired . | . . . Time . | . . . Parts Recycled . | . . . Recycled Matter . | . . . Retrieved Matter . | . . . Retrieved Components . | . . . Parts Scanalyzed . | . . . Part Schematics Acquired . | . . . Parts Damaged . | . . . Bothacking | -11 -10 -10 ------------ Run | Yrd Mat Sub Used RIF Installer . | . . . Robots Hacked . | . . . Non-combat . | . . . Combat . | . . . Robot Hacks Applied . | . . . Relay Couplers Released . | . . . Fabnet Peak Effective % . | . . . Robots Rewired . | . . . Allies Hacked . | . . . Hacks Repelled . | . . . Allies | -11 -10 -10 -------- Run | Yrd Mat Sub Total Allies . | . . . Largest Group . | . . . Highest-Rated Group . | . . . Highest-Rated Ally . | . . . Total Orders . | . . . Ally Attacks . | . . . Total Damage . | . . . Kills . | . . . Allies Corrupted . | . . . Allies Melted . | . . . Intel | -11 -10 -10 ------- Run | Yrd Mat Sub Robot Analysis Total . | . . . Derelict Logs Recovered 2 | . . 2 Drone Launches . | . . . Drone Recoveries . | . . . Exploration | -11 -10 -10 ------------- Run | Yrd Mat Sub Turns Passed 6171 | 60 1288 4823 Spaces Moved 2651 | 36 758 1857 Core 10 | 10 . . Treads 1565 | . . 1565 Legs 422 | 26 122 274 Wheels 654 | . 636 18 Hover . | . . . Flight . | . . . Fastest Speed 50 | 50 95 125 Average Speed 167 | 108 112 191 Slowest Speed 330 | 190 330 250 Overloaded Moves . | . . . Propulsion Burnouts . | . . . Robots Hopped . | . . . Cave-ins Triggered . | . . . Exploration Rate (%) 59 | 4 96 78 Regions Visited 2 Branch Regions 1 Pre-discovered Areas 2 | . . 2 Known Exits Taken . | . . . Unknown Exits Taken 2 | 1 1 . Scrap Searched 7 | . . 7 Spaces Dug 8 | . 8 . Terrain Destroyed 56 | . 8 48 Melee . | . . . Projectile 12 | . 8 4 AOE 44 | . . 44 Terrain Rammed . | . . . Walls Destroyed . | . . . Machines Disabled . | . . . Actions | -11 -10 -10 --------- Run | Yrd Mat Sub Total 4156 | 48 1105 3003 Wait 1247 | . 247 1000 Move 2649 | 35 757 1857 Hop . | . . . Pick Up 34 | 4 21 9 Fast Attach 15 | 6 3 6 Attach 9 | . 1 8 Detach 1 | . . 1 Swap 23 | . 9 14 Drop 29 | . 12 17 Fire 148 | 3 55 90 Melee . | . . . Ram . | . . . Kick . | . . . Crush . | . . . Escape Stasis . | . . . Rewire . | . . . Trap 1 | . . 1 Miscellaneous . | . . . Route ------- -11/Scrapyard -10/Materials (discovered 5 exits: [*Mat x3] / [*Min] / *Sub) -10/Subcaves (discovered 2 exits: [*Mat] / *Rec) History --------- Turn | Location | Event 4 | -11/Scrapyard | Discovered new exit (range 15) 61 | -11/Scrapyard | Entered Materials 245 | -10/Materials | Discovered new exit (range 16) 313 | -10/Materials | Build established: Mutant 530 | -10/Materials | Discovered new exit (range 18) 623 | -10/Materials | Discovered new exit (range 3) 781 | -10/Materials | Discovered new exit (range 16) 1330 | -10/Materials | Discovered new exit (range 3) 1349 | -10/Materials | Entered Subcaves 1356 | -10/Subcaves | Identified exit to Recycling 1472 | -10/Subcaves | Visited Clippyterm 1968 | -10/Subcaves | Visited 4L-MR0's lab 1989 | -10/Subcaves | Found Gun Armor 2442 | -10/Subcaves | Disturbed a concealed Subdweller 2444 | -10/Subcaves | Core integrity fell below 50% 3411 | -10/Subcaves | Ambushed by Subdwellers from Twisted Machinery 3489 | -10/Subcaves | Lost 4 parts (1n1u2w) 4259 | -10/Subcaves | Learned location of Zion (-7) 4259 | -10/Subcaves | Met a Zionite searching for "candidates" 4965 | -10/Subcaves | Core integrity fell below 20% 5008 | -10/Subcaves | A swath of the cavern ceiling suddenly collapsed 5484 | -10/Subcaves | Discovered new exit (range 15) 6172 | -10/Subcaves | Destroyed by Autobeam Turret with Autobeam Last Messages --------------- 05519_ Found 14 Matter. 05520_ Acquired 14 matter. 05520_ Acquired 15 matter. 05538_ Subatomizers dissect the Flamer. 05553_ The unstable cave ceiling collapses. 05575_ Subatomizers dissect the Flamer, destroying it. 05575_ The unstable cave ceiling collapses. 05590_ System corrupted: Component data lost. 05626_ System corrupted: Energy discharge (-62). 05646_ The unstable cave ceiling collapses. 05656_ Acquired 13 matter. 05669_ CDS38IT/PJBPKPBZI9?????????????????????? | | ??# # #????????????????????????????????????? | | ??# ##????????????????????????????????????? | | ??##### #???????????????????????????????????##? | | ??????## ##?????????????????????????????????## # | | ???????## #?????????????????????????????????# " | | ????????# ##?????????????????????????????????# " | | ????????# ####???????????????????????????????# " | | ???????## #???????????????????????????????##" | | ??????## #????????????????????????????????#" | +----------------------------------------------------+ Best States ------------- Heat Dissipation 25 Energy Generation 15 Energy Capacity 250 Matter Stores 300 Matter Capacity 300 Sight Range 16 Terrain Scan Density 10 Armor Coverage 225 Evasion (%) 55 Recoil Reduction 2 Item Schematics ----------------- Huge Storage Unit | -10/Materials | Hacked Hcp. Storage Unit | -10/Materials | Hacked Robot Schematics ------------------ None Fabricated ------------ Nothing Alien Tech Used ----------------- None Achievements -------------- None Challenges ------------ None Game ------ Seed AluminumTrapActivator Manual? 0 Play Time 00:29:37 Cumulative 85.3 hours Start 2024.04.12 @ 09:06:28 End 2024.04.12 @ 09:36:14 Sessions 1 Manual Loads 0 Difficulty Rogue Special Mode None Game No. 73 Rogue 73 Adventurer 0 Explorer 0 Win Type - Total 2 Types 1/0/1/0/0/0/0/0/0 Lore% 41 Gallery% 57 Achievement% 48 Wizard Run 0 Options --------- Layout 2 ASCII 0 Keyboard 0 Movement Mouse Keybinds 0 Fullscreen 2 Font 32/SmallcapsGlow Map View 50x44 Zoom Use 0% Tactical HUD 1 Map Filters NONE Filters NONE Steam 1 RUN: ea642009-5fec-4f6c-80d5-880a08cdff2f